bitfinex/quotes_BTCUSD_20250222
["timestamp","ask_amount","ask_price","bid_price","bid_amount"]
[1740221670141,1.02077483,96685.0,96684.0,8.9e-07]
[1740221670344,0.425052,96679.0,96678.0,6.9e-07]
[1740221670480,0.54223854,96679.0,96678.0,6.9e-07]
[1740221670682,0.58763854,96679.0,96678.0,6.9e-07]
[1740221671084,0.90813854,96679.0,96678.0,6.9e-07]
[1740221671536,0.92213854,96679.0,96678.0,6.9e-07]
[1740221671849,1.01778423,96679.0,96678.0,6.9e-07]
[1740221672051,1.02478423,96679.0,96678.0,6.9e-07]
[1740221672949,1.01078423,96679.0,96678.0,6.9e-07]
[1740221673120,1.01778423,96679.0,96678.0,6.9e-07]
[1740221673763,1.01078423,96679.0,96678.0,6.9e-07]
[1740221673976,1.01778423,96679.0,96678.0,6.9e-07]
[1740221674770,1.02478423,96679.0,96678.0,6.9e-07]
[1740221684875,0.345171,96667.0,96666.0,1.3694358]
[1740221685110,0.53825264,96667.0,96666.0,1.3694358]
[1740221685404,0.53825264,96667.0,96666.0,1.37700392]
[1740221686111,0.54425264,96667.0,96666.0,1.37700392]
[1740221687434,0.54925264,96667.0,96666.0,1.37700392]
[1740221688790,0.86975264,96667.0,96666.0,1.37700392]
[1740221690287,0.87767755,96667.0,96666.0,1.37700392]
[1740221695409,0.85767755,96667.0,96666.0,1.37700392]
[1740221696087,0.78178245,96667.0,96666.0,1.37700392]
[1740221697354,0.78178245,96667.0,96666.0,1.37870472]
[1740221697755,0.78263285,96667.0,96666.0,1.37870472]
[1740221707573,0.87583455,96667.0,96666.0,1.37870472]
[1740221715948,0.78263285,96667.0,96666.0,1.37870472]
[1740221717218,0.88527854,96667.0,96666.0,1.37870472]
[1740221721113,0.78263285,96667.0,96666.0,1.37870472]
[1740221734642,2.71831685,96667.0,96666.0,1.37870472]
[1740221735266,2.71231685,96667.0,96666.0,1.37870472]
[1740221735490,2.40868585,96667.0,96666.0,1.37870472]
[1740221735698,2.41568585,96667.0,96666.0,1.37870472]
[1740221735900,2.51333154,96667.0,96666.0,1.37870472]
[1740221736101,2.50633154,96667.0,96666.0,1.37870472]
[1740221736363,2.52033154,96667.0,96666.0,1.37870472]
[1740221736554,1.80322554,96667.0,96666.0,1.37870472]
[1740221736986,1.81022554,96667.0,96666.0,1.37870472]
[1740221737167,1.79364954,96667.0,96666.0,1.37870472]
[1740221738367,1.75787154,96667.0,96666.0,1.37870472]
[1740221738682,1.77787154,96667.0,96666.0,1.37870472]
[1740221746625,1.85417154,96667.0,96666.0,1.37870472]
[1740221747026,1.84717154,96667.0,96666.0,1.37870472]
[1740221747334,1.85417154,96667.0,96666.0,1.37870472]
[1740221747471,1.84717154,96667.0,96666.0,1.37870472]
[1740221747673,1.85417154,96667.0,96666.0,1.37870472]
[1740221751906,1.84717154,96667.0,96666.0,1.37870472]
[1740221752135,1.84017154,96667.0,96666.0,1.37870472]
[1740221752337,1.89287154,96667.0,96666.0,0.10441272]
[1740221752704,0.35972385,96660.0,96657.0,0.0008503]
[1740221752922,4.01698923,96660.0,96659.0,0.00174382]
[1740221753142,4.01776923,96660.0,96659.0,0.00174382]
[1740221753871,4.02476923,96660.0,96659.0,0.00174382]
[1740221754075,4.03176923,96660.0,96659.0,0.00174382]
[1740221754420,3.58814023,96660.0,96659.0,0.00174382]
[1740221754778,3.59514023,96660.0,96659.0,0.00174382]
[1740221756343,3.58814023,96660.0,96659.0,0.00174382]
[1740221756766,3.59514023,96660.0,96659.0,0.00174382]
[1740221757023,3.58814023,96660.0,96659.0,0.00174382]
[1740221757304,3.59514023,96660.0,96659.0,0.00174382]
[1740221757926,3.59514023,96660.0,96657.0,0.0008503]
[1740221757927,0.345186,96658.0,96657.0,1.2e-07]
[1740221758133,0.53867254,96658.0,96657.0,1.2e-07]
[1740221758745,0.54918789,96658.0,96657.0,1.2e-07]
[1740221759836,0.55618789,96658.0,96657.0,1.2e-07]
[1740221760094,0.56318789,96658.0,96657.0,1.2e-07]
[1740221760338,0.66583358,96658.0,96657.0,1.2e-07]
[1740221763111,0.98633358,96658.0,96657.0,1.2e-07]
[1740221763501,0.9928142,96658.0,96657.0,1.2e-07]
[1740221764114,0.3452,96649.0,96648.0,0.0008503]
[1740221764300,1.44611954,96649.0,96648.0,0.0008503]
[1740221764543,1.47994523,96649.0,96648.0,0.0008503]
[1740221765054,1.11401523,96649.0,96648.0,0.0008503]
[1740221765774,1.12101523,96649.0,96648.0,0.0008503]
[1740221766002,0.96622623,96649.0,96648.0,0.0008503]
[1740221766203,0.97322623,96649.0,96648.0,0.0008503]
[1740221766738,0.93523023,96649.0,96648.0,0.0008503]
[1740221767311,0.83502923,96649.0,96648.0,0.0008503]
[1740221767513,0.82321723,96649.0,96648.0,0.0008503]
[1740221767949,0.79675323,96649.0,96648.0,0.0008503]
[1740221768145,0.75675323,96649.0,96648.0,0.0008503]
[1740221768467,0.71855323,96649.0,96648.0,0.0008503]
[1740221768675,0.47638654,96649.0,96648.0,0.0008503]
[1740221768881,0.43638654,96649.0,96648.0,0.0008503]
[1740221769087,0.75688654,96649.0,96648.0,0.0780503]
[1740221773068,0.74234569,96649.0,96648.0,0.0780503]
[1740221773378,0.75688654,96649.0,96648.0,0.0780503]
[1740221773787,0.60168654,96649.0,96648.0,0.0780503]
[1740221775530,0.59468654,96649.0,96648.0,0.0780503]
[1740221776008,0.60168654,96649.0,96648.0,0.0780503]
[1740221776158,0.59468654,96649.0,96648.0,0.0780503]
[1740221776360,0.58714569,96649.0,96648.0,0.0780503]
[1740221776560,0.58714569,96649.0,96648.0,0.1275503]
[1740221776907,0.58714569,96649.0,96648.0,0.13736822]
[1740221777661,0.58714569,96649.0,96648.0,0.1275503]
[1740221780608,0.58714569,96649.0,96648.0,0.13736822]
[1740221784356,0.58714569,96649.0,96648.0,0.1275503]
[1740221785340,0.58714569,96649.0,96648.0,0.13736657]
[1740221786942,0.26664569,96649.0,96648.0,0.13736657]
[1740221787820,0.26664569,96649.0,96648.0,0.1275503]
[1740221788206,0.26664569,96649.0,96648.0,0.13736657]
[1740221789054,0.42184569,96649.0,96648.0,0.01066657]
[1740221789411,0.42184569,96649.0,96648.0,0.0008503]
[1740221791874,0.43638654,96649.0,96648.0,0.0008503]
[1740221793001,0.75688654,96649.0,96648.0,0.0008503]
[1740221794464,0.60168654,96649.0,96648.0,0.0008503]
[1740221796874,0.75688654,96649.0,96648.0,0.0008503]
[1740221797418,0.60168654,96649.0,96648.0,0.0008503]
[1740221798918,0.75688654,96649.0,96648.0,0.0008503]
[1740221799313,0.60168654,96649.0,96648.0,0.0008503]
[1740221810411,0.58714569,96649.0,96648.0,0.0008503]
[1740221810601,0.58714569,96649.0,96648.0,0.01066974]
[1740221810817,0.58714569,96649.0,96648.0,0.0008503]
[1740221810955,0.58714569,96649.0,96648.0,0.01066974]
[1740221811177,0.58714569,96649.0,96648.0,0.0008503]
[1740221811381,0.58714569,96649.0,96648.0,0.01066974]
[1740221811582,0.58714569,96649.0,96648.0,0.0008503]
[1740221811803,0.43714569,96649.0,96648.0,0.16587174]
[1740221812653,0.43014569,96649.0,96648.0,0.16587174]
[1740221813096,0.43514569,96649.0,96648.0,0.16587174]
[1740221813245,0.42314569,96649.0,96648.0,0.16587174]
[1740221813400,0.42914569,96649.0,96648.0,0.16587174]
[1740221813615,0.43214569,96649.0,96648.0,0.16587174]
[1740221813855,0.42614569,96649.0,96648.0,0.16587174]
[1740221814323,0.43014569,96649.0,96648.0,0.16587174]
[1740221816513,0.10964569,96649.0,96648.0,0.16587174]
[1740221824309,0.007,96649.0,96648.0,0.16587174]
[1740221824506,0.007,96649.0,96648.0,0.28821319]
[1740221824707,0.007,96649.0,96648.0,0.28697174]
[1740221825835,0.004,96649.0,96648.0,0.28697174]
[1740221826035,0.001701,96657.0,96648.0,0.05626974]
[1740221826238,0.001701,96657.0,96656.0,0.230489]
[1740221826473,0.001701,96657.0,96656.0,0.226489]
[1740221826823,0.001701,96657.0,96656.0,0.23628098]
[1740221827319,0.004701,96657.0,96656.0,0.23628098]
[1740221827507,0.003701,96657.0,96656.0,0.23628098]
[1740221827715,0.002701,96657.0,96656.0,0.23628098]
[1740221827926,0.004701,96657.0,96656.0,0.23628098]
[1740221828464,0.004701,96657.0,96656.0,0.16098098]
[1740221829213,0.004701,96657.0,96656.0,0.00979198]
[1740221829430,0.003701,96657.0,96654.0,0.206923]
[1740221829769,0.002701,96657.0,96656.0,0.155189]
[1740221830069,0.003701,96657.0,96656.0,0.155189]
[1740221830241,0.003701,96657.0,96656.0,0.16497194]
[1740221830421,0.002701,96657.0,96656.0,0.16497194]
[1740221830623,0.002701,96657.0,96656.0,0.00978294]
[1740221830826,0.003701,96657.0,96655.0,0.155191]
[1740221831027,0.003701,96657.0,96656.0,0.16496289]
[1740221831235,0.002701,96657.0,96656.0,0.16496289]
[1740221831643,0.002701,96657.0,96656.0,0.00977389]
[1740221831843,0.002701,96657.0,96656.0,0.16496289]
[1740221832062,0.002701,96657.0,96656.0,0.155189]
[1740221832264,0.002701,96657.0,96656.0,0.16496278]
[1740221832460,0.003701,96657.0,96656.0,0.16496278]
[1740221832927,0.26153369,96657.0,96656.0,0.00977378]
[1740221833569,0.155191,96655.0,96648.0,0.0008503]
[1740221833771,0.10264569,96654.0,96648.0,0.0008503]
[1740221834183,0.25783969,96654.0,96648.0,0.0008503]
[1740221834423,0.10264569,96654.0,96648.0,0.0008503]
[1740221835221,0.155194,96653.0,96648.0,0.0008503]
[1740221835441,0.10264569,96652.0,96648.0,0.0008503]
[1740221835564,0.25784169,96652.0,96648.0,0.0008503]
[1740221836823,0.10464569,96652.0,96648.0,0.0008503]
[1740221837769,0.10664569,96652.0,96648.0,0.0008503]
[1740221838427,0.10664569,96652.0,96649.0,0.00979149]
[1740221839282,0.155198,96651.0,96649.0,0.00979149]
[1740221839439,0.10264569,96650.0,96649.0,0.00979149]
[1740221839652,0.10264569,96650.0,96648.0,0.0008503]
[1740221839891,0.10264569,96650.0,96649.0,0.00979149]
[1740221840272,0.10264569,96650.0,96648.0,0.0008503]
[1740221840678,0.10364569,96650.0,96649.0,0.00979149]
[1740221841074,0.10264569,96650.0,96648.0,0.0008503]
[1740221841497,0.10264569,96650.0,96649.0,0.00979149]
[1740221841720,0.10264569,96650.0,96648.0,0.0008503]
[1740221841955,0.10264569,96650.0,96649.0,0.00979164]
[1740221842359,0.10464569,96650.0,96648.0,0.0008503]
[1740221842761,0.10364569,96650.0,96649.0,0.00979164]
[1740221843471,0.10464569,96650.0,96649.0,0.00979164]
[1740221843957,0.10364569,96650.0,96649.0,0.00979164]
[1740221844342,0.11297608,96650.0,96649.0,0.00979164]
[1740221844923,0.10264569,96650.0,96649.0,0.00979164]
[1740221845326,0.10364569,96650.0,96648.0,0.0008503]
[1740221845501,0.10364569,96650.0,96649.0,0.00979189]
[1740221845714,0.10464569,96650.0,96649.0,0.00979189]
[1740221846253,0.10364569,96650.0,96648.0,0.0008503]
[1740221846500,0.10464569,96650.0,96649.0,0.00979189]
[1740221847099,0.10364569,96650.0,96649.0,0.00979189]
[1740221847309,0.10464569,96650.0,96649.0,0.00979189]
[1740221847519,0.25984469,96650.0,96649.0,0.00979189]
[1740221847728,0.10464569,96650.0,96649.0,0.00979189]
[1740221847927,0.10464569,96650.0,96648.0,0.0008503]
[1740221848128,0.10464569,96650.0,96649.0,0.00979189]
[1740221848684,0.10364569,96650.0,96649.0,0.00979189]
[1740221849087,0.10464569,96650.0,96649.0,0.00979189]
[1740221849535,0.10364569,96650.0,96649.0,0.00979189]
[1740221849914,0.10464569,96650.0,96649.0,0.00979189]
[1740221851992,0.10464569,96650.0,96647.0,0.155203]
[1740221852223,0.10469018,96650.0,96649.0,0.00881425]
[1740221852428,0.10469018,96650.0,96647.0,0.155203]
[1740221852789,0.10369018,96650.0,96648.0,0.00881434]
[1740221853622,0.10469018,96650.0,96648.0,0.00881434]
[1740221854180,0.10369018,96650.0,96648.0,0.00881434]
[1740221854582,0.10269018,96650.0,96648.0,0.00881434]
[1740221854808,4.449e-05,96650.0,96649.0,0.0776]
[1740221855011,0.00104449,96650.0,96649.0,0.23404151]
[1740221855213,0.00104449,96650.0,96649.0,0.29081454]
[1740221856084,0.00204449,96650.0,96649.0,0.29081454]
[1740221856291,0.00104449,96650.0,96649.0,0.29081454]
[1740221857006,4.449e-05,96650.0,96649.0,0.29081454]
[1740221857834,0.00104449,96650.0,96649.0,0.29081454]
[1740221858243,4.449e-05,96650.0,96649.0,0.29081454]
[1740221863407,0.00174549,96650.0,96649.0,0.29081454]
[1740221873617,0.00174549,96650.0,96649.0,0.21321454]
[1740221880630,0.00174549,96650.0,96649.0,0.16401454]
[1740221882480,0.00174549,96650.0,96649.0,0.16525588]
[1740221882687,0.00174549,96650.0,96649.0,0.16401454]
[1740221884913,0.00174549,96650.0,96649.0,0.16525587]
[1740221894290,0.00174549,96650.0,96649.0,0.18465743]
[1740221895576,0.00174549,96650.0,96649.0,0.16525587]
[1740221924480,0.00174549,96650.0,96649.0,0.16401454]
[1740221925116,0.00174549,96650.0,96649.0,0.16525592]
[1740221926627,0.00174549,96650.0,96649.0,0.16401454]
[1740221928047,0.00174549,96650.0,96649.0,0.16525594]
[1740221928249,0.00174549,96650.0,96649.0,0.16401454]
[1740221928599,0.00174549,96650.0,96649.0,0.16525592]
[1740221928720,0.00174549,96650.0,96649.0,0.16401454]
[1740221928934,0.00174549,96650.0,96649.0,0.16525592]
[1740221950745,0.00174549,96650.0,96649.0,0.24255592]
[1740221950960,0.00174549,96650.0,96649.0,0.24131454]
[1740221951399,0.00174549,96650.0,96649.0,0.39316023]
[1740221952286,0.00174549,96650.0,96649.0,0.54316023]
[1740221954149,0.00274549,96650.0,96649.0,0.54316023]
[1740221954553,0.00174549,96650.0,96649.0,0.54316023]
[1740221954966,0.00274549,96650.0,96649.0,0.54516023]
[1740221955159,0.00374549,96650.0,96649.0,0.54816023]
[1740221955360,0.00274549,96650.0,96649.0,0.54516023]
[1740221955807,0.00374549,96650.0,96649.0,0.54816023]
[1740221956317,0.00374549,96650.0,96649.0,0.55576126]
[1740221958451,0.00374549,96650.0,96649.0,0.57513828]
[1740221960803,0.00374549,96650.0,96649.0,0.34599259]
[1740221961625,0.00374549,96650.0,96649.0,0.32661557]
[1740221962036,0.00274549,96650.0,96649.0,0.32361557]
[1740221962386,0.00274549,96650.0,96649.0,0.32261557]
[1740221963065,0.00174549,96650.0,96649.0,0.32161557]
[1740221963226,0.00274549,96650.0,96649.0,0.32161557]
[1740221963420,0.00374549,96650.0,96649.0,0.32261557]
[1740221963669,0.00274549,96650.0,96649.0,0.16501454]
[1740221964006,0.00374549,96650.0,96649.0,0.16501454]
[1740221964380,0.00374549,96650.0,96649.0,0.16625592]
[1740221971866,0.00374549,96650.0,96649.0,0.18564503]
[1740221982695,0.00374549,96650.0,96649.0,0.16625592]
[1740221983183,0.00374549,96650.0,96649.0,0.18565058]
[1740221988287,0.00374549,96650.0,96649.0,0.1844092]
[1740221988486,0.00374549,96650.0,96649.0,0.18565056]
[1740221989325,0.00374549,96650.0,96649.0,0.1844092]
[1740221989533,0.00374549,96650.0,96649.0,0.18565056]
[1740221989750,0.00374549,96650.0,96649.0,0.1844092]
[1740221990812,0.00174549,96650.0,96649.0,0.18465056]
[1740221991037,0.00274549,96650.0,96649.0,0.1834092]
[1740221991165,0.00374549,96650.0,96649.0,0.18565056]
[1740221991387,0.00374549,96650.0,96649.0,0.1844092]
[1740221991927,0.00374549,96650.0,96649.0,0.18565057]
[1740221992130,0.00374549,96650.0,96649.0,0.1844092]
[1740221992658,0.00374549,96650.0,96649.0,0.18565056]
[1740221992867,0.08484549,96650.0,96649.0,0.1844092]
[1740221993985,0.08384549,96650.0,96649.0,0.1834092]
[1740221994406,0.08284549,96650.0,96649.0,0.1844092]
[1740221995562,0.08284549,96650.0,96649.0,0.16501454]
[1740222005510,0.00174549,96650.0,96649.0,0.16501454]
[1740222016492,0.00174549,96650.0,96649.0,0.16625597]
[1740222018749,0.00174549,96650.0,96649.0,0.16501454]
[1740222019658,0.00174549,96650.0,96649.0,0.16625598]
[1740222021575,0.00174549,96650.0,96649.0,0.16501454]
[1740222024521,0.00159029,96650.0,96649.0,0.16501454]
[1740222039143,0.00159029,96650.0,96649.0,0.16586494]
[1740222058070,0.00138347,96650.0,96649.0,0.16586494]
[1740222064573,0.00138347,96650.0,96649.0,0.1671064]
[1740222065194,0.00138347,96650.0,96649.0,0.29316494]
[1740222068820,0.00138347,96650.0,96649.0,0.21496494]
[1740222069179,0.00138347,96650.0,96649.0,0.16586494]
[1740222072835,0.00138347,96650.0,96649.0,0.16710633]
[1740222072997,0.00138347,96650.0,96649.0,0.16586494]
[1740222074748,0.00138347,96650.0,96649.0,0.1671063]
[1740222075307,0.00138347,96650.0,96649.0,0.16586494]
[1740222075708,0.00138347,96650.0,96649.0,0.1671063]
[1740222078512,0.00138347,96650.0,96649.0,0.16586494]
[1740222078753,0.00138347,96650.0,96649.0,0.1671063]
[1740222080359,0.00138347,96650.0,96649.0,0.16586494]
[1740222081306,0.00138347,96650.0,96649.0,0.1671063]
[1740222083474,0.00138347,96650.0,96649.0,0.2972063]
[1740222083684,0.00138347,96650.0,96649.0,0.29596494]
[1740222094429,0.00138347,96650.0,96649.0,0.32702471]
[1740222097415,0.00138347,96650.0,96649.0,0.24552471]
[1740222099317,0.00138347,96650.0,96649.0,0.21446494]
[1740222110786,0.00138347,96650.0,96649.0,0.16586494]
[1740222111085,0.00138347,96650.0,96649.0,0.1671063]
[1740222117022,0.00138347,96650.0,96649.0,0.49735199]
[1740222117236,0.00138347,96650.0,96649.0,0.49611063]
[1740222117431,0.00138347,96650.0,96649.0,0.52848177]
[1740222118044,0.00138347,96650.0,96649.0,0.52748177]
[1740222118472,0.00238347,96650.0,96649.0,0.52848177]
[1740222119230,0.00338347,96650.0,96649.0,0.53148177]
[1740222126437,4.7e-07,96650.0,96649.0,0.57718177]
[1740222128193,4.7e-07,96650.0,96649.0,0.67010611]
[1740222129082,8e-07,96658.0,96656.0,0.15]
[1740222129341,8e-07,96658.0,96657.0,0.40907385]
[1740222129497,8e-07,96658.0,96657.0,0.41537621]
[1740222131155,8e-07,96658.0,96657.0,0.42137621]
[1740222131375,8e-07,96658.0,96657.0,0.5295455]
[1740222131803,0.0008504,96667.0,96666.0,0.155173]
[1740222131976,0.0008504,96667.0,96666.0,0.15641413]
[1740222132179,0.0008504,96667.0,96666.0,0.16394405]
[1740222132334,0.0008504,96667.0,96666.0,0.26658974]
[1740222132539,0.0008504,96667.0,96666.0,0.26534861]
[1740222133277,0.0008504,96667.0,96666.0,0.26834861]
[1740222134068,0.0008504,96667.0,96666.0,0.27034861]
[1740222134335,0.0008504,96667.0,96666.0,0.26534861]
[1740222134856,0.0008504,96667.0,96666.0,0.27834861]
[1740222137795,4e-07,96667.0,96666.0,0.51104861]
[1740222138784,4e-07,96667.0,96666.0,0.53207672]
[1740222143286,4e-07,96667.0,96666.0,0.85347672]
[1740222145147,4e-07,96667.0,96666.0,0.85517752]
[1740222149590,4e-07,96667.0,96666.0,0.77247752]
[1740222149801,4e-07,96667.0,96666.0,0.78039752]
[1740222150009,4e-07,96667.0,96666.0,0.77247752]
[1740222150211,4e-07,96667.0,96666.0,0.75144941]
[1740222163156,4e-07,96667.0,96666.0,0.49880372]
[1740222163157,0.0758004,96667.0,96666.0,0.49880372]
[1740222163565,0.0758004,96667.0,96666.0,0.17740372]
[1740222163765,0.0758004,96667.0,96666.0,0.02223072]
[1740222163766,0.1230004,96667.0,96666.0,0.02223072]
[1740222164196,0.1230004,96667.0,96666.0,0.0147008]
[1740222164626,0.1230004,96667.0,96666.0,0.02220418]
[1740222164809,0.1230004,96667.0,96666.0,0.01520418]
[1740222165034,0.1230004,96667.0,96666.0,0.00920418]
[1740222165235,0.1230004,96667.0,96666.0,0.01820418]
[1740222165656,0.1230004,96667.0,96666.0,0.0107008]
[1740222165992,0.1230004,96667.0,96666.0,0.01820418]
[1740222167177,0.1230004,96667.0,96666.0,0.0107008]
[1740222167570,0.2781714,96667.0,96666.0,0.01822027]
[1740222167962,0.2781714,96667.0,96666.0,0.0107008]
[1740222169231,0.1230004,96667.0,96666.0,0.0107008]
[1740222170466,0.1230004,96667.0,96666.0,0.01824061]
[1740222170675,0.1230004,96667.0,96666.0,0.01324061]
[1740222170870,0.1230004,96667.0,96666.0,0.0057008]
[1740222171076,0.1230004,96667.0,96666.0,0.01723988]
[1740222171436,0.1230004,96667.0,96666.0,0.0097008]
[1740222171619,0.1230004,96667.0,96666.0,0.01324226]
[1740222171768,0.1230004,96667.0,96666.0,0.01624226]
[1740222172580,0.1230004,96667.0,96666.0,0.01224226]
[1740222172794,0.1230004,96667.0,96666.0,0.01624226]
[1740222179025,0.1230004,96667.0,96666.0,0.17141526]
[1740222201590,0.1230004,96667.0,96666.0,0.01624226]
[1740222202035,0.2781714,96667.0,96666.0,0.0087008]
[1740222202201,0.1230004,96667.0,96666.0,0.0087008]
[1740222202981,0.1230004,96667.0,96666.0,0.01623788]
[1740222204756,0.12274178,96667.0,96666.0,0.01623788]
[1740222205291,0.12274178,96667.0,96666.0,0.17141088]
[1740222206353,0.12274178,96667.0,96666.0,0.01623788]
[1740222206531,0.12274178,96667.0,96666.0,0.17141088]
[1740222206734,0.12274178,96667.0,96666.0,0.1638738]
[1740222206942,0.12274178,96667.0,96666.0,0.17141344]
[1740222211224,0.07554178,96667.0,96666.0,0.17141344]
[1740222211431,0.09174085,96675.0,96666.0,0.17141344]
[1740222211613,0.10264569,96674.0,96666.0,0.17141344]
[1740222212766,0.10264569,96674.0,96666.0,0.16841344]
[1740222213174,0.10264569,96674.0,96666.0,0.16941344]
[1740222213337,0.10264569,96674.0,96666.0,0.16541344]
[1740222213749,0.10264569,96674.0,96666.0,0.16641344]
[1740222214172,0.10264569,96674.0,96666.0,0.01024044]
[1740222215001,0.10264569,96674.0,96666.0,0.01224044]
[1740222215223,0.0008504,96667.0,96666.0,0.01224044]
[1740222216010,0.0008504,96667.0,96666.0,0.16741344]
[1740222216563,0.0008504,96667.0,96666.0,0.16441344]
[1740222216708,0.0008504,96667.0,96666.0,0.17141344]
[1740222217943,0.0008504,96667.0,96666.0,0.17465834]
[1740222219348,0.0008504,96667.0,96666.0,0.17141344]
[1740222220365,0.0008504,96667.0,96666.0,0.17265471]
[1740222220546,0.0008504,96667.0,96666.0,0.3539004]
[1740222220748,0.0008504,96667.0,96666.0,0.39985913]
[1740222221178,0.0008504,96667.0,96666.0,0.54985913]
[1740222222963,0.0008504,96667.0,96666.0,0.54685913]
[1740222223166,0.0008504,96667.0,96666.0,0.54585913]
[1740222223566,0.0008504,96667.0,96666.0,0.54685913]
[1740222223811,0.0008504,96667.0,96666.0,0.55185913]
[1740222224011,0.0008504,96667.0,96666.0,0.54785913]
[1740222224330,0.0008504,96667.0,96666.0,0.55385913]
[1740222224589,0.0008504,96667.0,96666.0,0.54885913]
[1740222224789,0.0008504,96667.0,96666.0,0.54985913]
[1740222225240,0.0008504,96667.0,96666.0,0.55685913]
[1740222227062,0.0008504,96667.0,96666.0,0.56477913]
[1740222230844,0.0008504,96667.0,96666.0,0.46213344]
[1740222231261,0.0008504,96667.0,96666.0,0.32841344]
[1740222231678,0.0008504,96667.0,96666.0,0.17841344]
[1740222232515,0.0008504,96667.0,96666.0,0.17141344]
[1740222233221,0.0008504,96667.0,96666.0,0.16441344]
[1740222233446,0.0008504,96667.0,96666.0,0.17141344]
[1740222234238,0.0008504,96667.0,96666.0,0.17265477]
[1740222270707,0.0008504,96667.0,96666.0,0.27405913]
[1740222271988,4e-07,96667.0,96666.0,0.41705913]
[1740222272223,4e-07,96667.0,96666.0,0.53360648]
[1740222272427,4e-07,96667.0,96666.0,0.53960648]
[1740222273087,4e-07,96667.0,96666.0,0.51517913]
[1740222273292,4e-07,96667.0,96666.0,0.54152169]
[1740222273494,4e-07,96667.0,96666.0,0.51617913]
[1740222273818,4e-07,96667.0,96666.0,0.43897913]
[1740222274455,4e-07,96667.0,96666.0,0.43197913]
[1740222274673,4e-07,96667.0,96666.0,0.43897913]
[1740222275091,4e-07,96667.0,96666.0,0.4713192]
[1740222275526,4e-07,96667.0,96666.0,0.62858569]
[1740222276148,4e-07,96667.0,96666.0,0.66092301]
[1740222276892,4e-07,96667.0,96666.0,0.62858569]
[1740222277094,4e-07,96667.0,96666.0,0.62066569]
[1740222277295,4e-07,96667.0,96666.0,0.62858569]
[1740222278113,4e-07,96667.0,96666.0,0.62066569]
[1740222278337,4e-07,96667.0,96666.0,0.62858569]
[1740222281250,4e-07,96667.0,96666.0,0.47066569]
[1740222305824,4e-07,96667.0,96666.0,0.50300608]
[1740222309387,4e-07,96667.0,96666.0,0.70040608]
[1740222312117,4e-07,96667.0,96666.0,0.7198051]
[1740222312556,4e-07,96667.0,96666.0,1.0412051]
[1740222315451,4e-07,96667.0,96666.0,1.02180608]
[1740222316498,4e-07,96667.0,96666.0,1.10420608]
[1740222317217,4e-07,96667.0,96666.0,1.09720608]
[1740222317961,4e-07,96667.0,96666.0,1.10420608]
[1740222318134,4e-07,96667.0,96666.0,1.09020608]
[1740222318342,4e-07,96667.0,96666.0,1.09720608]
[1740222318546,4e-07,96667.0,96666.0,1.10420608]
[1740222321359,4e-07,96667.0,96666.0,1.10835008]
[1740222323183,4e-07,96667.0,96666.0,1.12835008]
[1740222324288,4e-07,96667.0,96666.0,1.14835008]
[1740222326091,4e-07,96667.0,96666.0,1.16773205]
[1740222326296,2e-07,96686.0,96680.0,0.15]
[1740222326508,2e-07,96686.0,96685.0,0.155142]
[1740222326653,2e-07,96686.0,96685.0,0.40902858]
[1740222326863,2e-07,96686.0,96685.0,0.41600917]
[1740222327454,7.593e-05,96686.0,96685.0,0.41600917]
[1740222328261,7.593e-05,96686.0,96685.0,0.42200917]
[1740222328462,7.593e-05,96686.0,96685.0,0.42900917]
[1740222330268,7.593e-05,96686.0,96685.0,0.42300917]
[1740222330470,7.593e-05,96686.0,96685.0,0.43000917]
[1740222331067,7.593e-05,96686.0,96685.0,0.42300917]
[1740222331543,7.593e-05,96686.0,96685.0,0.43000917]
[1740222333914,7.593e-05,96686.0,96685.0,0.45059063]
[1740222339515,7.593e-05,96686.0,96685.0,0.45229123]
[1740222350976,0.0777506,96698.0,96690.0,0.15]
[1740222351178,0.0777506,96698.0,96697.0,0.155123]
[1740222351597,0.0777506,96698.0,96697.0,0.16513481]
[1740222353567,0.07779364,96698.0,96697.0,0.16513481]
[1740222354102,0.07779364,96698.0,96697.0,0.16913481]
[1740222354548,0.07779364,96698.0,96697.0,0.17213481]
[1740222355437,0.07779364,96698.0,96697.0,0.1825507]
[1740222367114,0.00089364,96698.0,96697.0,0.1825507]
[1740222382492,0.00089364,96698.0,96697.0,0.17213481]
[1740222382713,0.07739364,96698.0,96697.0,0.17213481]
[1740222383879,0.07739364,96698.0,96697.0,0.16913481]
[1740222384077,0.07739364,96698.0,96697.0,0.16713481]
[1740222384305,0.07739364,96698.0,96697.0,0.16513481]
[1740222384694,0.07739364,96698.0,96697.0,0.16713481]
[1740222385095,0.07739364,96698.0,96697.0,0.17013481]
[1740222385447,0.07739364,96698.0,96697.0,0.16713481]
[1740222385851,0.07739364,96698.0,96697.0,0.17013481]
[1740222387177,0.00089364,96698.0,96697.0,0.17013481]
[1740222392747,0.00089364,96698.0,96697.0,0.16813481]
[1740222393000,0.00089364,96698.0,96697.0,0.17113481]
[1740222393388,0.00089364,96698.0,96697.0,0.16513481]
[1740222393559,0.00089364,96698.0,96697.0,0.17113481]
[1740222393768,0.00089364,96698.0,96697.0,0.16913481]
[1740222394013,0.00089364,96698.0,96697.0,0.16513481]
[1740222394324,0.00089364,96698.0,96697.0,0.16813481]
[1740222394889,0.00089364,96698.0,96697.0,0.17113481]
[1740222395305,0.0813,96702.0,96701.0,0.34291086]
[1740222395808,0.0813,96702.0,96701.0,0.35291166]
[1740222396591,0.0813,96702.0,96701.0,0.35391166]
[1740222397311,0.0813,96708.0,96704.0,0.155112]
[1740222397938,0.0813,96708.0,96704.0,0.16511367]
[1740222400419,0.10816929,96714.0,96704.0,0.16511367]
[1740222400627,0.18786929,96714.0,96704.0,0.16511367]
[1740222400833,0.0797,96714.0,96704.0,0.16511367]
[1740222401191,0.18786929,96714.0,96704.0,0.16511367]
[1740222403094,0.18786929,96714.0,96704.0,0.16811367]
[1740222403371,0.18786929,96714.0,96704.0,0.17111367]
[1740222403673,0.0797,96714.0,96704.0,0.17111367]
[1740222404289,0.18786929,96714.0,96704.0,0.17111367]
[1740222414150,0.0797,96714.0,96704.0,0.17111367]
[1740222417781,0.0824,96723.0,96704.0,0.17111367]
[1740222418887,0.0824,96723.0,96704.0,0.16811367]
[1740222419094,0.0824,96723.0,96704.0,0.16911367]
[1740222419513,0.0824,96723.0,96704.0,0.17311367]
[1740222419725,0.10816929,96720.0,96704.0,0.17311367]
[1740222422247,0.0817,96713.0,96704.0,0.16911367]
[1740222422665,0.0817,96713.0,96704.0,0.17011367]
[1740222423264,0.0817,96713.0,96704.0,0.17411367]
[1740222429107,0.155106,96708.0,96704.0,0.01400167]
[1740222429476,0.08290034,96705.0,96704.0,0.16911367]
[1740222429610,0.08290034,96705.0,96704.0,0.17311367]
[1740222431956,0.08290034,96705.0,96704.0,0.16511367]
[1740222432317,0.08290034,96705.0,96704.0,0.16811367]
[1740222432490,0.08290034,96705.0,96704.0,0.16511367]
[1740222432706,0.08290034,96705.0,96704.0,0.16911367]
[1740222432904,0.08290034,96705.0,96704.0,0.17211367]